{"text_format":"3","workbook":"xlsx","n_sheets":2,"sheets":["Bütçe Özeti","Bütçe Detayları"],"not_rendered":{"images":1,"defined_names":1},"read":"whole","date_system":"1900"}

{"sheet":"Bütçe Özeti","index":0,"n_rows":28,"n_cols":7,"rows_kept":28}
[{"$nulls":6}," "]
[]
[null,"TOPLAM EVLİLİK BÜTÇESİ",{"v":20000,"d":"20,000 ₺"}]
[]
[null,"GİDERLER","Ayrılan pay \n%","Ayrılan \nBütçe","Tahmini \nMaliyetler","Gerçek \nMaliyetler"]
[null,"Resepsiyon",{"v":0.5,"d":"50%"},{"$f":"Toplam_Evlilik_Bütçesi*'Bütçe Özeti'!$C6","v":{"v":10000,"d":"10,000 ₺"}},{"$f":"Resepsiyon_Tablosu[[#Totals],[Tahmini Giderler]]","v":{"v":0,"d":"0 ₺"}},{"$f":"Resepsiyon_Tablosu[[#Totals],[Gerçek Giderler]]","v":{"v":0,"d":"0 ₺"}}]
[null,"Giyim",{"v":0.1,"d":"10%"},{"$f":"Toplam_Evlilik_Bütçesi*'Bütçe Özeti'!$C7","v":{"v":2000,"d":"2,000 ₺"}},{"$f":"Giyim_Tablosu[[#Totals],[Tahmini Giderler]]","v":{"v":0,"d":"0 ₺"}},{"$f":"Giyim_Tablosu[[#Totals],[Gerçek Giderler]]","v":{"v":0,"d":"0 ₺"}}]
[null,"Çiçekler ve Dekorasyon",{"v":0.1,"d":"10%"},{"$f":"Toplam_Evlilik_Bütçesi*'Bütçe Özeti'!$C8","v":{"v":2000,"d":"2,000 ₺"}},{"$f":"ÇiçeklerVeDekorasyon_Tablosu[[#Totals],[Tahmini Giderler]]","v":{"v":0,"d":"0 ₺"}},{"$f":"ÇiçeklerVeDekorasyon_Tablosu[[#Totals],[Gerçek Giderler]]","v":{"v":0,"d":"0 ₺"}}]
[null,"Müzik",{"v":0.1,"d":"10%"},{"$f":"Toplam_Evlilik_Bütçesi*'Bütçe Özeti'!$C9","v":{"v":2000,"d":"2,000 ₺"}},{"$f":"Müzik_Tablosu[[#Totals],[Tahmini Giderler]]","v":{"v":0,"d":"0 ₺"}},{"$f":"Müzik_Tablosu[[#Totals],[Gerçek Giderler]]","v":{"v":0,"d":"0 ₺"}}]
[null,"Fotoğraf ve Video",{"v":0.1,"d":"10%"},{"$f":"Toplam_Evlilik_Bütçesi*'Bütçe Özeti'!$C10","v":{"v":2000,"d":"2,000 ₺"}},{"$f":"FotoğrafVeVideo_Tablosu[[#Totals],[Tahmini Giderler]]","v":{"v":0,"d":"0 ₺"}},{"$f":"FotoğrafVeVideo_Tablosu[[#Totals],[Gerçek Giderler]]","v":{"v":0,"d":"0 ₺"}}]
[null,"Hediyeler ve İkramlar",{"v":0.03,"d":"3%"},{"$f":"Toplam_Evlilik_Bütçesi*'Bütçe Özeti'!$C11","v":{"v":600,"d":"600 ₺"}},{"$f":"İkramVeHediyeler_Tablosu[[#Totals],[Tahmini Giderler]]","v":{"v":0,"d":"0 ₺"}},{"$f":"İkramVeHediyeler_Tablosu[[#Totals],[Gerçek Giderler]]","v":{"v":0,"d":"0 ₺"}}]
[null,"Tören",{"v":0.02,"d":"2%"},{"$f":"Toplam_Evlilik_Bütçesi*'Bütçe Özeti'!$C12","v":{"v":400,"d":"400 ₺"}},{"$f":"Tören_Tablosu[[#Totals],[Tahmini Giderler]]","v":{"v":0,"d":"0 ₺"}},{"$f":"Tören_Tablosu[[#Totals],[Gerçek Giderler]]","v":{"v":0,"d":"0 ₺"}}]
[null,"Kırtasiye",{"v":0.02,"d":"2%"},{"$f":"Toplam_Evlilik_Bütçesi*'Bütçe Özeti'!$C13","v":{"v":400,"d":"400 ₺"}},{"$f":"Kırtasiye_Tablosu[[#Totals],[Tahmini Giderler]]","v":{"v":0,"d":"0 ₺"}},{"$f":"Kırtasiye_Tablosu[[#Totals],[Gerçek Giderler]]","v":{"v":0,"d":"0 ₺"}}]
[null,"Nikah Yüzükleri",{"v":0.02,"d":"2%"},{"$f":"Toplam_Evlilik_Bütçesi*'Bütçe Özeti'!$C14","v":{"v":400,"d":"400 ₺"}},{"$f":"DüğünYüzükleri_Tablosu[[#Totals],[Tahmini Giderler]]","v":{"v":0,"d":"0 ₺"}},{"$f":"DüğünYüzükleri_Tablosu[[#Totals],[Gerçek Giderler]]","v":{"v":0,"d":"0 ₺"}}]
[null,"Ulaşım",{"v":0.01,"d":"1%"},{"$f":"Toplam_Evlilik_Bütçesi*'Bütçe Özeti'!$C15","v":{"v":200,"d":"200 ₺"}},{"$f":"Ulaşım_Tablosu[[#Totals],[Tahmini Giderler]]","v":{"v":0,"d":"0 ₺"}},{"$f":"Ulaşım_Tablosu[[#Totals],[Gerçek Giderler]]","v":{"v":0,"d":"0 ₺"}}]
[null,"Toplam",{"$f":"SUM(C6:C15)","v":{"v":1,"d":"100%"}},{"$f":"SUM(D6:D15)","v":{"v":20000,"d":"20,000 ₺"}},{"v":0,"d":"0 ₺"},{"v":0,"d":"0 ₺"}]
[]
[null,"KATKILAR"]
[null,"Katkı Kaynağı","Katkı"]
[null,"Birikimler",{"v":10000,"d":"10,000 ₺"}]
[null,"Eş 1’in Anne & Babası",{"v":4000,"d":"4,000 ₺"}]
[null,"Eş 1’in Büyükanne & Büyükbabası",{"v":2000,"d":"2,000 ₺"}]
[null,"Eş 2’nin Anne & Babası",{"v":4000,"d":"4,000 ₺"}]
[null,"Eş 2’nin Büyükanne & Büyükbabası",{"v":4000,"d":"4,000 ₺"}]
[null,"Diğer katkılar",{"v":2000,"d":"2,000 ₺"}]
[null,"Toplam",{"$f":"SUBTOTAL(109,Katkılar_Tablosu[Katkı])","v":{"v":26000,"d":"26,000 ₺"}}]
[]
[null,{"$f":"IF(Katkılar_Tablosu[[#Totals],[Katkı]]<Toplam_Evlilik_Bütçesi,\"Düzenlenecek fark\",\"Kullanılabilir ek fonlar\")","v":"Kullanılabilir ek fonlar"},{"$f":"IF(Katkılar_Tablosu[[#Totals],[Katkı]]<Toplam_Evlilik_Bütçesi,Toplam_Evlilik_Bütçesi-Katkılar_Tablosu[[#Totals],[Katkı]],Katkılar_Tablosu[[#Totals],[Katkı]]-Toplam_Evlilik_Bütçesi)","v":{"v":6000,"d":"6,000 ₺"}}]

{"sheet":"Bütçe Detayları","index":1,"n_rows":80,"n_cols":4,"rows_kept":80}
[]
[null,"RESEPSİYON","Tahmini Giderler","Gerçek Giderler"]
[null,"Mekan ve kiralamalar"]
[null,"Yemek ve servis"]
[null,"İçecekler"]
[null,"Pasta"]
[null,"Çeşitli ücretler"]
[null,"Toplam",{"$f":"SUBTOTAL(109,Resepsiyon_Tablosu[Tahmini Giderler])","v":{"v":0,"d":"0.00 ₺"}},{"$f":"SUBTOTAL(109,Resepsiyon_Tablosu[Gerçek Giderler])","v":{"v":0,"d":"0.00 ₺"}}]
[]
[null,"GİYİM","Tahmini Giderler","Gerçek Giderler"]
[null,"Gelinlik, Damatlık ve/veya elbiseler"]
[null,"Tadilatlar"]
[null,"Saç ve tül"]
[null,"Aksesuarlar"]
[null,"Saç ve makyaj"]
[null,"Çeşitli ücretler"]
[null,"Toplam",{"$f":"SUBTOTAL(109,Giyim_Tablosu[Tahmini Giderler])","v":{"v":0,"d":"0.00 ₺"}},{"$f":"SUBTOTAL(109,Giyim_Tablosu[Gerçek Giderler])","v":{"v":0,"d":"0.00 ₺"}}]
[]
[null,"ÇİÇEKLER VE DEKORASYON","Tahmini Giderler","Gerçek Giderler"]
[null,"Tören için çiçek düzenlemeleri"]
[null,"Çiçekçi kızın goncaları ve sepeti"]
[null,"Yüzük yastığı"]
[null,"Buket"]
[null,"Yaka Çiçeği"]
[null,"Çiçek Buketleri"]
[null,"Resepsiyon dekorasyonu"]
[null,"Aydınlatma"]
[null,"Çeşitli ücretler"]
[null,"Toplam",{"$f":"SUBTOTAL(109,ÇiçeklerVeDekorasyon_Tablosu[Tahmini Giderler])","v":{"v":0,"d":"0.00 ₺"}},{"$f":"SUBTOTAL(109,ÇiçeklerVeDekorasyon_Tablosu[Gerçek Giderler])","v":{"v":0,"d":"0.00 ₺"}}]
[]
[null,"MÜZİK","Tahmini Giderler","Gerçek Giderler"]
[null,"Tören müzisyenleri"]
[null,"Kokteyl müzisyenleri"]
[null,"Resepsiyon müzik grubu, dj veya gösteri"]
[null,"Ses sistemi veya dans pisti kiralama"]
[null,"Çeşitli ücretler"]
[null,"Toplam",{"$f":"SUBTOTAL(109,Müzik_Tablosu[Tahmini Giderler])","v":{"v":0,"d":"0.00 ₺"}},{"$f":"SUBTOTAL(109,Müzik_Tablosu[Gerçek Giderler])","v":{"v":0,"d":"0.00 ₺"}}]
[]
[null,"FOTOĞRAF VE VİDEO","Tahmini Giderler","Gerçek Giderler"]
[null,"Fotoğrafçılık"]
[null,"Videografi"]
[null,"Ek baskılar ve albümler"]
[null,"Çeşitli ücretler"]
[null,"Toplam",{"$f":"SUBTOTAL(109,FotoğrafVeVideo_Tablosu[Tahmini Giderler])","v":{"v":0,"d":"0.00 ₺"}},{"$f":"SUBTOTAL(109,FotoğrafVeVideo_Tablosu[Gerçek Giderler])","v":{"v":0,"d":"0.00 ₺"}}]
[]
[null,"HEDİYELER VE İKRAMLAR","Tahmini Giderler","Gerçek Giderler"]
[null,"Hoşgeldiniz hediyeleri"]
[null,"Parti hediyeleri"]
[null,"Çeşitli ücretler"]
[null,"Toplam",{"$f":"SUBTOTAL(109,İkramVeHediyeler_Tablosu[Tahmini Giderler])","v":{"v":0,"d":"0.00 ₺"}},{"$f":"SUBTOTAL(109,İkramVeHediyeler_Tablosu[Gerçek Giderler])","v":{"v":0,"d":"0.00 ₺"}}]
[]
[null,"TÖREN","Tahmini Giderler","Gerçek Giderler"]
[null,"Mekan ücreti"]
[null,"Nikah memuru ücreti veya din görevlisi bağışı"]
[null,"Çeşitli ücretler"]
[null,"Toplam",{"$f":"SUBTOTAL(109,Tören_Tablosu[Tahmini Giderler])","v":{"v":0,"d":"0.00 ₺"}},{"$f":"SUBTOTAL(109,Tören_Tablosu[Gerçek Giderler])","v":{"v":0,"d":"0.00 ₺"}}]
[]
[null,"KIRTASİYE","Tahmini Giderler","Gerçek Giderler"]
[null,"Ön davetiye kartları"]
[null,"Davetiyeler ve LCV’ler"]
[null,"Programlar"]
[null,"Oturma ve yerleştirme kartları"]
[null,"Menü kartları"]
[null,"Teşekkür notları"]
[null,"Posta"]
[null,"Çeşitli ücretler"]
[null,"Toplam",{"$f":"SUBTOTAL(109,Kırtasiye_Tablosu[Tahmini Giderler])","v":{"v":0,"d":"0.00 ₺"}},{"$f":"SUBTOTAL(109,Kırtasiye_Tablosu[Gerçek Giderler])","v":{"v":0,"d":"0.00 ₺"}}]
[]
[null,"NİKAH YÜZÜKLERİ","Tahmini Giderler","Gerçek Giderler"]
[null,"Nikah yüzükleri"]
[null,"Yüzük aksesuarları"]
[null,"Toplam",{"$f":"SUBTOTAL(109,DüğünYüzükleri_Tablosu[Tahmini Giderler])","v":{"v":0,"d":"0.00 ₺"}},{"$f":"SUBTOTAL(109,DüğünYüzükleri_Tablosu[Gerçek Giderler])","v":{"v":0,"d":"0.00 ₺"}}]
[]
[null,"ULAŞIM","Tahmini Giderler","Gerçek Giderler"]
[null,"Esas araba kiralama"]
[null,"Misafirler için araba kiralama"]
[null,"Şehir dışı misafirlerin ulaşımı"]
[null,"Vale ücreti"]
[null,"Çeşitli ücretler"]
[null,"Toplam",{"$f":"SUBTOTAL(109,Ulaşım_Tablosu[Tahmini Giderler])","v":{"v":0,"d":"0.00 ₺"}},{"$f":"SUBTOTAL(109,Ulaşım_Tablosu[Gerçek Giderler])","v":{"v":0,"d":"0.00 ₺"}}]